[Event "Austria Championship Blitz 2024"]
[Site "Innsbruck"]
[Date "2024.06.01"]
[Round "3.12"]
[White "Horvath, Dominik"]
[Black "Gutmann, Alois"]
[Result "1-0"]
[ECO "A40"]
[WhiteElo "2554"]
[BlackElo "1985"]
[Annotator "TA"]
[PlyCount "41"]
[EventDate "2024.06.01"]
[EventType "swiss"]
[EventCountry "AUT"]
[SourceTitle "playchess.com"]
[Source "ChessBase"]
[SourceQuality "1"]
[TimeControl "180+2"]

{[%evp 9,41,77,154,86,98,58,312,339,400,401,1020,997,929,854,910,918,905,901,1142,1147,1076,917,926,901,918,875,1009,1020,1048,1056,1102,1089,29998,29999]} 1. d4 {[%emt 0:00:00][%cal Bd2d4,Bd4d5,Bd5d6][%mdl 32]} e6 {[%emt 0:00:00][%cal Be7e6,Be6e5][%mdl 32]} 2. Nc3 {[%emt 0:00:01]} c5 {[%emt 0:00:03]} 3. d5 {[%emt 0:00:02]} e5 {[%emt 0:00:07]} 4. e4 {[%emt 0:00:02]} d6 {[%emt 0:00:01]} 5. f4 {[%emt 0:00:04]} Be7 {[%emt 0:00:16]} (5... Nd7 $142) 6. Nf3 {[%emt 0:00:03]} (6. fxe5 $142 a6 7. Nf3) 6... Nd7 {[%emt 0:00:02]} 7. fxe5 {[%emt 0:00:02] White is more active.} dxe5 {[%emt 0:00:07][%mdl 8192] Loses the game.} ({Black should try} 7... Nxe5 $14 8. Bb5+ Bd7) 8. d6 $18 {[%emt 0:00:07] White has a decisive advantage.} Bf6 {[%emt 0:00:07]} 9. Nd5 {[%emt 0:00:04] [#] aiming for Nc7+.} b6 {[%emt 0:00:14]} (9... Rb8 $142 10. Be2 h5) 10. Nc7+ {[%emt 0:00:02]} Kf8 {[%emt 0:00:03]} 11. Nxa8 {[%emt 0:00:03]} Bb7 {[%emt 0:00:01]} 12. Nc7 {[%emt 0:00:02]} Bxe4 {[%emt 0:00:02]} 13. Bc4 {[%emt 0:00:03]} Nh6 {[%emt 0:00:05]} 14. Bxh6 {[%emt 0:00:04]} gxh6 {[%emt 0:00:02]} 15. Qe2 {[%emt 0:00:05]} Bg6 {[%emt 0:00:07]} 16. O-O-O {[%emt 0:00:04]} Kg7 {[%emt 0:00:02]} 17. Kb1 {[%emt 0:00:02]} e4 {[%emt 0:00:09]} 18. Nd2 {[%emt 0:00:03]} e3 {[%emt 0:00:14]} 19. Qxe3 {[%emt 0:00:03]} Bd4 {[%emt 0:00:06]} 20. Qe7 {[%emt 0:00:05]} Ne5 {[%emt 0:00:08]} 21. Ne6+ {[%emt 0:00:05] Weighted Error Value: White=0.24 (precise) /Black=1.12.  Loses game:     	---       	Black=1      Mistake:       	---       	Black=1      Inaccurate:     	White=1     	---        OK:         	White=1     	Black=1      Best:        	White=1     	---} 1-0

[Event "Austria Championship Blitz 2024"]
[Site "Innsbruck"]
[Date "2024.06.01"]
[Round "3.13"]
[White "Kosc, Renata"]
[Black "Binder, Moriz"]
[Result "0-1"]
[ECO "C28"]
[WhiteElo "1983"]
[BlackElo "2210"]
[Annotator "RC"]
[PlyCount "56"]
[EventDate "2024.06.01"]
[EventType "swiss"]
[EventCountry "AUT"]
[SourceTitle "playchess.com"]
[Source "ChessBase"]
[SourceQuality "1"]
[TimeControl "180+2"]

1. e4 {[%emt 0:00:01]} e5 {[%emt 0:00:01]} 2. Bc4 {[%emt 0:00:01]} Nf6 {[%emt 0:00:01]} 3. d3 {[%emt 0:00:01]} Nc6 {[%emt 0:00:01]} 4. Nc3 {[%emt 0:00:06]} Na5 {[%emt 0:00:01]} 5. Bb3 {[%emt 0:00:03]} Nxb3 {[%emt 0:00:02]} 6. axb3 {[%emt 0:00:01]} d5 {[%emt 0:00:05]} 7. exd5 {[%emt 0:00:20]} Nxd5 {[%emt 0:00:01]} 8. Qe2 {[%emt 0:00:08]} f6 {[%emt 0:00:14]} 9. f4 {[%emt 0:00:17]} Nxc3 {[%emt 0:00:20]} 10. bxc3 {[%emt 0:00:01]} Bd6 {[%emt 0:00:00]} 11. fxe5 {[%emt 0:00:13]} fxe5 {[%emt 0:00:01]} 12. Nf3 {[%emt 0:00:29]} O-O {[%emt 0:00:02]} 13. O-O {[%emt 0:00:04]} Bg4 {[%emt 0:00:19]} 14. Qe3 {[%emt 0:00:11]} Qe7 {[%emt 0:00:08]} 15. b4 {[%emt 0:00:01]} a5 {[%emt 0:00:04]} 16. h3 {[%emt 0:00:24]} Bd7 {[%emt 0:00:12]} 17. bxa5 {[%emt 0:00:17]} Bc6 {[%emt 0:00:21]} 18. d4 {[%emt 0:00:08]} Rae8 {[%emt 0:00:13]} 19. Nxe5 {[%emt 0:00:08]} Rxf1+ {[%emt 0:00:28]} 20. Kxf1 {[%emt 0:00:01]} Bxe5 {[%emt 0:00:01]} 21. Qxe5 {[%emt 0:00:08]} Qf7+ {[%emt 0:00:13]} 22. Qf4 {[%emt 0:00:01]} Qxf4+ {[%emt 0:00:01]} 23. Bxf4 {[%emt 0:00:01]} Rf8 {[%emt 0:00:00]} 24. g3 {[%emt 0:00:05]} g5 {[%emt 0:00:01]} 25. Ke2 {[%emt 0:00:17]} gxf4 {[%emt 0:00:01]} 26. gxf4 {[%emt 0:00:01]} Rxf4 {[%emt 0:00:02]} 27. Rg1+ {[%emt 0:00:11]} Kf7 {[%emt 0:00:02]} 28. Rf1 {[%emt 0:00:06]} Bb5+ {[%emt 0:00:02]} 0-1

[Event "Austria Championship Blitz 2024"]
[Site "Innsbruck"]
[Date "2024.06.01"]
[Round "3.15"]
[White "Mira, Helene"]
[Black "Frolik, Michael"]
[Result "1-0"]
[ECO "E16"]
[WhiteElo "2047"]
[BlackElo "1984"]
[Annotator "RC"]
[PlyCount "53"]
[EventDate "2024.06.01"]
[EventType "swiss"]
[EventCountry "AUT"]
[SourceTitle "playchess.com"]
[Source "ChessBase"]
[SourceQuality "1"]
[TimeControl "180+2"]

1. d4 {[%emt 0:00:03]} Nf6 {[%emt 0:00:01]} 2. c4 {[%emt 0:00:02]} e6 {[%emt 0:00:01]} 3. Nf3 {[%emt 0:00:01]} b6 {[%emt 0:00:01]} 4. g3 {[%emt 0:00:01]} Bb7 {[%emt 0:00:01]} 5. Bg2 {[%emt 0:00:01]} d6 {[%emt 0:00:00]} 6. O-O {[%emt 0:03:06]} Nbd7 7. Nc3 {[%emt 0:00:00]} Be7 {[%emt 0:00:04]} 8. Qd3 {[%emt 0:00:00]} O-O {[%emt 0:00:11]} 9. e4 {[%emt 0:00:06]} c5 10. Re1 {[%emt 0:00:00]} cxd4 {[%emt 0:00:01]} 11. Nxd4 {[%emt 0:00:00]} a6 {[%emt 0:00:02]} 12. b3 {[%emt 0:00:00]} Rc8 {[%emt 0:00:08]} 13. Ba3 {[%emt 0:00:00]} Qc7 {[%emt 0:00:02]} 14. Rac1 {[%emt 0:00:00]} Nc5 {[%emt 0:00:02]} 15. Qb1 {[%emt 0:00:00]} Rfd8 {[%emt 0:00:13]} 16. Kh1 {[%emt 0:00:00]} Ng4 {[%emt 0:00:05]} 17. Nd1 {[%emt 0:00:00]} Bf6 {[%emt 0:00:10]} 18. Bb2 {[%emt 0:00:00]} h5 {[%emt 0:00:20]} 19. h3 {[%emt 0:00:00]} Ne5 {[%emt 0:00:02]} 20. Re3 {[%emt 0:00:00]} Ng6 {[%emt 0:00:01]} 21. f4 {[%emt 0:00:00]} h4 {[%emt 0:00:01]} 22. f5 {[%emt 0:00:00]} Ne5 {[%emt 0:00:09]} 23. fxe6 {[%emt 0:00:00]} Nxe6 {[%emt 0:00:01]} 24. Nf5 {[%emt 0:00:00]} hxg3 {[%emt 0:00:18]} 25. Rxg3 {[%emt 0:00:00]} Kf8 {[%emt 0:00:01]} 26. Nde3 {[%emt 0:00:00]} Qc5 {[%emt 0:00:12]} 27. Nd5 {[%emt 0:00:00]} 1-0

[Event "Austria Championship Blitz 2024"]
[Site "Innsbruck"]
[Date "2024.06.01"]
[Round "3.16"]
[White "Schwarz, Benedikt"]
[Black "Wetscher, Wolfgang"]
[Result "0-1"]
[ECO "A55"]
[WhiteElo "1919"]
[BlackElo "1937"]
[Annotator "RC"]
[PlyCount "86"]
[EventDate "2024.06.01"]
[EventType "swiss"]
[EventCountry "AUT"]
[SourceTitle "playchess.com"]
[Source "ChessBase"]
[SourceQuality "1"]
[TimeControl "180+2"]

1. d4 {[%emt 0:00:01]} c6 {[%emt 0:00:01]} 2. c4 {[%emt 0:00:01]} Qc7 {[%emt 0:00:00]} 3. e4 d6 {[%emt 0:03:07]} 4. Nc3 {[%emt 0:00:02]} Nd7 {[%emt 0:00:00]} 5. Nf3 {[%emt 0:00:01]} Ngf6 {[%emt 0:00:00]} 6. Be3 {[%emt 0:00:02]} e5 {[%emt 0:00:00]} 7. Be2 {[%emt 0:00:03]} Be7 {[%emt 0:00:00]} 8. O-O {[%emt 0:00:02]} O-O {[%emt 0:00:00]} 9. d5 {[%emt 0:00:01]} a5 {[%emt 0:00:00]} 10. a3 {[%emt 0:00:02]} Re8 {[%emt 0:00:00]} 11. b4 {[%emt 0:00:07]} axb4 {[%emt 0:00:00]} 12. axb4 {[%emt 0:00:02]} Rxa1 {[%emt 0:00:00]} 13. Qxa1 {[%emt 0:00:01]} Nf8 {[%emt 0:00:00]} 14. Rc1 {[%emt 0:00:26]} Ng6 {[%emt 0:00:00]} 15. h3 {[%emt 0:00:14]} Bd7 {[%emt 0:00:00]} 16. c5 {[%emt 0:00:19]} Bf8 {[%emt 0:00:00]} 17. cxd6 {[%emt 0:00:03]} Qxd6 {[%emt 0:00:00]} 18. Bc5 {[%emt 0:00:08]} Qb8 {[%emt 0:00:00]} 19. Bxf8 {[%emt 0:00:06]} Rxf8 {[%emt 0:00:00]} 20. Qa5 {[%emt 0:00:17]} Rc8 {[%emt 0:00:00]} 21. Nd2 {[%emt 0:00:37]} cxd5 {[%emt 0:00:00]} 22. exd5 {[%emt 0:00:02]} Nf4 {[%emt 0:00:00]} 23. Bf3 {[%emt 0:00:06]} Bxh3 {[%emt 0:00:00]} 24. gxh3 {[%emt 0:00:04]} Nxh3+ {[%emt 0:00:00]} 25. Kf1 {[%emt 0:00:07]} e4 {[%emt 0:00:00]} 26. Ndxe4 {[%emt 0:00:04]} Nxe4 {[%emt 0:00:00]} 27. Bxe4 {[%emt 0:00:02]} Qf4 {[%emt 0:00:00]} 28. Rc2 {[%emt 0:00:06]} g6 {[%emt 0:00:00]} 29. Qa1 {[%emt 0:00:12]} Ng5 {[%emt 0:00:28]} 30. Qc1 {[%emt 0:00:06]} Qxc1+ {[%emt 0:00:08]} 31. Rxc1 {[%emt 0:00:02]} Nxe4 {[%emt 0:00:01]} 32. Na2 {[%emt 0:00:06]} Rxc1+ {[%emt 0:00:08]} 33. Nxc1 {[%emt 0:00:01]} Kf8 {[%emt 0:00:02]} 34. Ke2 {[%emt 0:00:02]} Ke7 {[%emt 0:00:02]} 35. Kd3 {[%emt 0:00:02]} Nxf2+ {[%emt 0:00:01]} 36. Kd4 {[%emt 0:00:05]} h5 {[%emt 0:00:01]} 37. Ke5 {[%emt 0:00:02]} h4 {[%emt 0:00:02]} 38. d6+ {[%emt 0:00:03]} Kd7 {[%emt 0:00:01]} 39. Ne2 {[%emt 0:00:01]} h3 {[%emt 0:00:01]} 40. Ng3 {[%emt 0:00:02]} h2 {[%emt 0:00:03]} 41. Kf6 {[%emt 0:00:04]} h1=Q {[%emt 0:00:03]} 42. Nxh1 {[%emt 0:00:01]} Nxh1 {[%emt 0:00:00]} 43. Kxf7 {[%emt 0:00:02]} g5 {[%emt 0:00:01]} 0-1

[Event "Austria Championship Blitz 2024"]
[Site "Innsbruck"]
[Date "2024.06.01"]
[Round "3.17"]
[White "Kienboeck, Benjamin"]
[Black "Kuzmanovic, Zeljko"]
[Result "1-0"]
[ECO "B03"]
[WhiteElo "2187"]
[BlackElo "1866"]
[Annotator "RC"]
[PlyCount "73"]
[EventDate "2024.06.01"]
[EventType "swiss"]
[EventCountry "AUT"]
[SourceTitle "playchess.com"]
[Source "ChessBase"]
[SourceQuality "1"]
[TimeControl "180+2"]

1. e4 {[%emt 0:00:01]} Nf6 {[%emt 0:00:01]} 2. e5 {[%emt 0:00:02]} Nd5 {[%emt 0:00:00]} 3. d4 {[%emt 0:00:01]} d6 {[%emt 0:00:01]} 4. exd6 {[%emt 0:00:04]} exd6 {[%emt 0:00:01]} 5. c4 {[%emt 0:00:03]} Nb6 {[%emt 0:00:01]} 6. Nc3 {[%emt 0:00:01]} Nc6 {[%emt 0:00:01]} 7. Be3 {[%emt 0:00:07]} Be7 {[%emt 0:00:02]} 8. Nf3 {[%emt 0:00:03]} Bg4 {[%emt 0:00:01]} 9. h3 {[%emt 0:00:03]} Bh5 {[%emt 0:00:01]} 10. g4 {[%emt 0:00:11]} Bg6 {[%emt 0:00:01]} 11. a3 {[%emt 0:00:10]} O-O {[%emt 0:00:17]} 12. Qd2 {[%emt 0:00:01]} f5 {[%emt 0:00:15]} 13. g5 {[%emt 0:00:28]} Re8 {[%emt 0:00:07]} 14. Be2 {[%emt 0:00:12]} Na5 {[%emt 0:00:02]} 15. c5 {[%emt 0:00:25]} Nb3 {[%emt 0:00:35]} 16. Qd1 {[%emt 0:00:21]} Nxa1 {[%emt 0:00:02]} 17. cxb6 {[%emt 0:00:01]} axb6 {[%emt 0:00:09]} 18. Qxa1 {[%emt 0:00:02]} c5 {[%emt 0:00:10]} 19. h4 {[%emt 0:00:15]} cxd4 {[%emt 0:00:03]} 20. Nxd4 {[%emt 0:00:04]} Bf7 {[%emt 0:00:22]} 21. Nxf5 {[%emt 0:00:13]} Qc7 {[%emt 0:00:07]} 22. Nd4 {[%emt 0:00:07]} d5 {[%emt 0:00:06]} 23. Kd2 {[%emt 0:00:09]} Bc5 {[%emt 0:00:07]} 24. Ncb5 {[%emt 0:00:04]} Qd7 {[%emt 0:00:07]} 25. b4 {[%emt 0:00:03]} Bxd4 {[%emt 0:00:05]} 26. Nxd4 {[%emt 0:00:04]} Qd6 {[%emt 0:00:10]} 27. Qb2 {[%emt 0:00:02]} Rac8 {[%emt 0:00:07]} 28. h5 {[%emt 0:00:01]} Qe5 {[%emt 0:00:18]} 29. Bd3 {[%emt 0:00:13]} Rc7 {[%emt 0:00:13]} 30. Qb1 Rec8 {[%emt 0:00:04]} 31. g6 {[%emt 0:00:10]} hxg6 {[%emt 0:00:12]} 32. hxg6 {[%emt 0:00:00]} Be8 {[%emt 0:00:13]} 33. Nf5 {[%emt 0:00:03]} d4 {[%emt 0:00:07]} 34. Rh8+ Kxh8 {[%emt 0:00:02]} 35. Qh1+ Kg8 {[%emt 0:00:02]} 36. Qh7+ Kf8 {[%emt 0:00:02]} 37. Qh8# 1-0

[Event "Austria Championship Blitz 2024"]
[Site "Innsbruck"]
[Date "2024.06.01"]
[Round "3.18"]
[White "Leonov, Leonid"]
[Black "Kummer, Helmut"]
[Result "0-1"]
[ECO "B15"]
[WhiteElo "1739"]
[BlackElo "2212"]
[Annotator "RC"]
[PlyCount "100"]
[EventDate "2024.06.01"]
[EventType "swiss"]
[EventCountry "AUT"]
[SourceTitle "playchess.com"]
[Source "ChessBase"]
[SourceQuality "1"]
[TimeControl "180+2"]

1. e4 {[%emt 0:00:01]} g6 {[%emt 0:00:01]} 2. d4 {[%emt 0:00:04]} Bg7 {[%emt 0:00:01]} 3. Nc3 {[%emt 0:00:01]} c6 {[%emt 0:00:01]} 4. f4 {[%emt 0:00:09]} d5 {[%emt 0:00:02]} 5. e5 {[%emt 0:00:01]} h5 {[%emt 0:00:04]} 6. Be3 {[%emt 0:00:03]} Nh6 {[%emt 0:00:01]} 7. h3 {[%emt 0:00:09]} Nf5 {[%emt 0:00:09]} 8. Bf2 {[%emt 0:00:01]} h4 {[%emt 0:00:17]} 9. Bd3 {[%emt 0:00:04]} Bh6 {[%emt 0:00:27]} 10. Qf3 {[%emt 0:00:14]} Na6 {[%emt 0:00:07]} 11. a3 {[%emt 0:00:08]} Nc7 {[%emt 0:00:03]} 12. Nge2 {[%emt 0:00:02]} Ne6 {[%emt 0:00:02]} 13. O-O-O {[%emt 0:00:13]} b5 {[%emt 0:00:05]} 14. Bxf5 {[%emt 0:00:29]} gxf5 {[%emt 0:00:02]} 15. g4 {[%emt 0:00:01]} hxg3 {[%emt 0:00:08]} 16. Nxg3 {[%emt 0:00:03]} Bxf4+ {[%emt 0:00:01]} 17. Kb1 {[%emt 0:00:03]} Bxg3 {[%emt 0:00:11]} 18. Bxg3 {[%emt 0:00:10]} f4 {[%emt 0:00:06]} 19. Bxf4 {[%emt 0:00:03]} Nxf4 {[%emt 0:00:01]} 20. Qxf4 {[%emt 0:00:02]} Be6 {[%emt 0:00:01]} 21. Ne2 {[%emt 0:00:16]} Qb6 {[%emt 0:00:02]} 22. Qd2 {[%emt 0:00:12]} O-O-O {[%emt 0:00:08]} 23. Nf4 {[%emt 0:00:02]} Bf5 {[%emt 0:00:00]} 24. Qc3 {[%emt 0:00:09]} e6 {[%emt 0:00:06]} 25. Rd2 {[%emt 0:00:05]} a5 {[%emt 0:00:05]} 26. h4 {[%emt 0:00:16]} Kd7 {[%emt 0:00:01]} 27. Nd3 {[%emt 0:00:02]} Bxd3 {[%emt 0:00:05]} 28. Qxd3 {[%emt 0:00:05]} Rdg8 {[%emt 0:00:05]} 29. Qf3 {[%emt 0:00:05]} Ke8 {[%emt 0:00:07]} 30. Qf6 {[%emt 0:00:06]} Qd8 {[%emt 0:00:01]} 31. Qxd8+ Kxd8 {[%emt 0:00:02]} 32. Rf2 {[%emt 0:00:07]} Ke7 {[%emt 0:00:03]} 33. c3 {[%emt 0:00:06]} Rg4 {[%emt 0:00:06]} 34. Rfh2 {[%emt 0:00:04]} Rh5 {[%emt 0:00:01]} 35. Kc2 {[%emt 0:00:01]} f5 {[%emt 0:00:04]} 36. exf6+ Kxf6 {[%emt 0:00:01]} 37. Rf2+ {[%emt 0:00:06]} Ke7 {[%emt 0:00:01]} 38. Rfh2 {[%emt 0:00:08]} Kd6 {[%emt 0:00:02]} 39. Rh3 {[%emt 0:00:04]} e5 {[%emt 0:00:02]} 40. dxe5+ Kxe5 {[%emt 0:00:01]} 41. Kd3 {[%emt 0:00:04]} c5 {[%emt 0:00:05]} 42. Re3+ {[%emt 0:00:06]} Kd6 {[%emt 0:00:01]} 43. Reh3 {[%emt 0:00:03]} c4+ {[%emt 0:00:01]} 44. Ke3 {[%emt 0:00:06]} Rg2 {[%emt 0:00:08]} 45. R1h2 {[%emt 0:00:02]} Rg4 {[%emt 0:00:06]} 46. Kf3 {[%emt 0:00:06]} Re4 {[%emt 0:00:01]} 47. Rh1 {[%emt 0:00:03]} Ke5 {[%emt 0:00:01]} 48. R1h2 {[%emt 0:00:03]} Kf6 {[%emt 0:00:06]} 49. Rf2 {[%emt 0:00:05]} Rhxh4 {[%emt 0:00:06]} 50. Rxh4 Rxh4 0-1

[Event "Austria Championship Blitz 2024"]
[Site "Innsbruck"]
[Date "2024.06.01"]
[Round "3.19"]
[White "Vrban, Damir"]
[Black "Sovago, Philipp"]
[Result "1/2-1/2"]
[ECO "B30"]
[WhiteElo "2151"]
[BlackElo "1954"]
[Annotator "RC"]
[PlyCount "35"]
[EventDate "2024.06.01"]
[EventType "swiss"]
[EventCountry "AUT"]
[SourceTitle "playchess.com"]
[Source "ChessBase"]
[SourceQuality "1"]
[TimeControl "180+2"]

1. e4 {[%emt 0:00:02]} c5 {[%emt 0:00:01]} 2. Nf3 {[%emt 0:00:23]} Nc6 {[%emt 0:00:01]} 3. Bc4 {[%emt 0:00:09]} g6 {[%emt 0:00:11]} 4. c3 {[%emt 0:00:17]} Bg7 {[%emt 0:00:09]} 5. Qe2 {[%emt 0:00:03]} d6 {[%emt 0:00:10]} 6. h3 {[%emt 0:00:07]} Nf6 {[%emt 0:00:09]} 7. d3 {[%emt 0:00:02]} O-O {[%emt 0:00:10]} 8. O-O {[%emt 0:00:02]} a6 {[%emt 0:00:10]} 9. Bb3 {[%emt 0:00:08]} b5 {[%emt 0:00:07]} 10. Nbd2 {[%emt 0:00:07]} Bb7 {[%emt 0:00:02]} 11. Re1 {[%emt 0:00:02]} Nd7 {[%emt 0:00:04]} 12. Nf1 {[%emt 0:00:04]} Nde5 {[%emt 0:00:15]} 13. Ne3 {[%emt 0:00:33]} a5 {[%emt 0:00:05]} 14. a4 {[%emt 0:00:08]} b4 {[%emt 0:00:07]} 15. Nxe5 {[%emt 0:00:10]} Nxe5 {[%emt 0:00:03]} 16. f4 {[%emt 0:00:25]} Nd7 {[%emt 0:00:03]} 17. Nc4 {[%emt 0:00:24]} Nb6 {[%emt 0:00:05]} 18. Qc2 {[%emt 0:00:05]} 1/2-1/2

[Event "Austria Championship Blitz 2024"]
[Site "Innsbruck"]
[Date "2024.06.01"]
[Round "3.20"]
[White "Horvath, Reka"]
[Black "Gschiel, Alexander"]
[Result "1-0"]
[ECO "B11"]
[WhiteElo "2009"]
[BlackElo "2355"]
[Annotator "RC"]
[PlyCount "57"]
[EventDate "2024.06.01"]
[EventType "swiss"]
[EventCountry "AUT"]
[SourceTitle "playchess.com"]
[Source "ChessBase"]
[SourceQuality "1"]
[TimeControl "180+2"]

1. e4 {[%emt 0:00:02]} c6 {[%emt 0:00:01]} 2. Nc3 {[%emt 0:00:01]} d5 {[%emt 0:00:00]} 3. Nf3 {[%emt 0:00:01]} Bg4 {[%emt 0:00:01]} 4. h3 {[%emt 0:00:02]} Bxf3 {[%emt 0:00:01]} 5. Qxf3 {[%emt 0:00:01]} e6 {[%emt 0:00:01]} 6. d4 {[%emt 0:00:12]} dxe4 {[%emt 0:00:04]} 7. Nxe4 {[%emt 0:00:02]} Qxd4 {[%emt 0:00:02]} 8. Bd3 {[%emt 0:00:07]} Nd7 {[%emt 0:00:10]} 9. O-O {[%emt 0:00:07]} Ne5 {[%emt 0:00:02]} 10. Qe2 {[%emt 0:00:17]} Nxd3 {[%emt 0:00:02]} 11. cxd3 {[%emt 0:00:01]} Nf6 {[%emt 0:00:10]} 12. Be3 {[%emt 0:00:06]} Qd8 {[%emt 0:00:04]} 13. Nc5 {[%emt 0:00:33]} b6 {[%emt 0:00:09]} 14. Nb3 {[%emt 0:00:12]} Be7 {[%emt 0:00:06]} 15. Rac1 {[%emt 0:00:05]} Qd7 {[%emt 0:00:10]} 16. Qf3 {[%emt 0:00:04]} Nd5 {[%emt 0:00:02]} 17. Bd4 {[%emt 0:00:11]} O-O {[%emt 0:00:03]} 18. Rfe1 {[%emt 0:00:17]} c5 {[%emt 0:00:06]} 19. Be5 {[%emt 0:00:03]} Nb4 {[%emt 0:00:04]} 20. d4 {[%emt 0:00:04]} f6 {[%emt 0:00:07]} 21. Bh2 {[%emt 0:00:19]} cxd4 {[%emt 0:00:02]} 22. Rc7 {[%emt 0:00:00]} Qd8 {[%emt 0:01:10]} 23. Nxd4 {[%emt 0:00:11]} Qxd4 {[%emt 0:00:07]} 24. Rxe7 {[%emt 0:00:01]} e5 {[%emt 0:00:03]} 25. Qb7 {[%emt 0:00:05]} Qd3 {[%emt 0:00:33]} 26. Rxg7+ {[%emt 0:00:04]} Kh8 {[%emt 0:00:00]} 27. Bg3 {[%emt 0:00:20]} Rg8 {[%emt 0:00:03]} 28. Rd7 {[%emt 0:00:04]} Qa6 {[%emt 0:00:07]} 29. Rxh7# {[%emt 0:00:03]} 1-0

[Event "Austria Championship Blitz 2024"]
[Site "Innsbruck"]
[Date "2024.06.01"]
[Round "3.21"]
[White "Teuschler, Barbara"]
[Black "Gerold, Alexander"]
[Result "1-0"]
[ECO "B01"]
[WhiteElo "2040"]
[BlackElo "1891"]
[Annotator "RC"]
[PlyCount "33"]
[EventDate "2024.06.01"]
[EventType "swiss"]
[EventCountry "AUT"]
[SourceTitle "playchess.com"]
[Source "ChessBase"]
[SourceQuality "1"]
[TimeControl "180+2"]

1. e4 {[%emt 0:00:00]} d5 {[%emt 0:00:03]} 2. exd5 Qxd5 {[%emt 0:00:01]} 3. Nc3 {[%emt 0:00:02]} Qa5 {[%emt 0:00:00]} 4. d4 {[%emt 0:00:01]} Nf6 {[%emt 0:00:02]} 5. Nf3 {[%emt 0:00:02]} Bf5 {[%emt 0:00:01]} 6. Bc4 {[%emt 0:00:04]} e6 {[%emt 0:00:03]} 7. Qe2 {[%emt 0:00:05]} c6 {[%emt 0:00:06]} 8. Bd2 {[%emt 0:00:02]} Be7 {[%emt 0:00:07]} 9. Nd5 {[%emt 0:00:15]} Qd8 {[%emt 0:00:03]} 10. Nxe7 {[%emt 0:00:03]} Qxe7 {[%emt 0:00:04]} 11. Bg5 {[%emt 0:00:08]} Nbd7 {[%emt 0:01:10]} 12. Ne5 {[%emt 0:00:01]} O-O-O {[%emt 0:00:14]} 13. O-O-O {[%emt 0:00:27]} h6 {[%emt 0:00:05]} 14. Bh4 {[%emt 0:00:04]} g5 {[%emt 0:00:34]} 15. Bg3 {[%emt 0:00:01]} Nd5 {[%emt 0:00:06]} 16. Nxc6 {[%emt 0:00:42]} bxc6 {[%emt 0:00:44]} 17. Ba6# {[%emt 0:00:01]} 1-0

[Event "Austria Championship Blitz 2024"]
[Site "Innsbruck"]
[Date "2024.06.01"]
[Round "3.22"]
[White "Keferboeck, Jewgeni"]
[Black "Guba, Viktor"]
[Result "0-1"]
[ECO "C74"]
[WhiteElo "1957"]
[BlackElo "1891"]
[Annotator "RC"]
[PlyCount "53"]
[EventDate "2024.06.01"]
[EventType "swiss"]
[EventCountry "AUT"]
[SourceTitle "playchess.com"]
[Source "ChessBase"]
[SourceQuality "1"]
[TimeControl "180+2"]

1. e4 {[%emt 0:00:01]} e5 {[%emt 0:00:00]} 2. Nf3 {[%emt 0:00:01]} Nc6 {[%emt 0:00:02]} 3. Bb5 {[%emt 0:00:01]} a6 {[%emt 0:00:01]} 4. Ba4 {[%emt 0:00:01]} d6 {[%emt 0:00:01]} 5. c3 {[%emt 0:00:04]} f5 {[%emt 0:00:01]} 6. exf5 Bxf5 {[%emt 0:00:01]} 7. O-O {[%emt 0:00:23]} Bd3 {[%emt 0:00:04]} 8. Re1 {[%emt 0:00:01]} Be7 {[%emt 0:00:01]} 9. Bc2 {[%emt 0:00:06]} Bxc2 {[%emt 0:00:13]} 10. Qxc2 {[%emt 0:00:01]} Nf6 {[%emt 0:00:01]} 11. d4 {[%emt 0:02:45]} exd4 {[%emt 0:00:12]} 12. cxd4 {[%emt 0:00:00]} O-O {[%emt 0:00:18]} 13. Qb3+ {[%emt 0:00:00]} d5 {[%emt 0:00:01]} 14. Qxb7 {[%emt 0:00:00]} Nb4 {[%emt 0:00:01]} 15. Bf4 {[%emt 0:00:00]} Bd6 {[%emt 0:00:38]} 16. Ne5 {[%emt 0:00:00]} Rb8 {[%emt 0:00:50]} 17. Qa7 {[%emt 0:00:12]} Qc8 18. a3 {[%emt 0:00:00]} Nc2 {[%emt 0:00:11]} 19. Nc6 {[%emt 0:00:00]} Ra8 {[%emt 0:00:05]} 20. Bxd6 {[%emt 0:00:01]} Rxa7 {[%emt 0:00:04]} 21. Ne7+ {[%emt 0:00:01]} Kh8 {[%emt 0:00:02]} 22. Nxc8 {[%emt 0:00:01]} Rxc8 {[%emt 0:00:03]} 23. Bc5 {[%emt 0:00:03]} Rb7 {[%emt 0:00:03]} 24. Nc3 {[%emt 0:00:03]} Nxa1 {[%emt 0:00:03]} 25. Rxa1 {[%emt 0:00:01]} Rxb2 {[%emt 0:00:01]} 26. g4 {[%emt 0:00:05]} Rc2 {[%emt 0:00:05]} 27. Nd1 {[%emt 0:00:05]} 0-1